[Event "Titled Tuesday Blitz November 22 Late 2022"]
[White "Reprintsev, Alexander"]
[Black "Young, Ryan"]
[WhiteFideId "14100541"]
[BlackFideId "2049945"]
[WhiteElo "2230"]
[BlackElo "2325"]
[Result "1-0"]
[Round "11"]
[TimeControl "180+1"]
[Date "2022.11.23"]
[WhiteClock "0:01:27"]
[BlackClock "0:01:03"]

1. e4 {[%clk 0:02:58]}  e5 {[%clk 0:03:00]} 2. f4 {[%clk 0:02:57]}  exf4 {[%clk 0:02:57]} 3. Bc4 {[%clk 0:02:57]}  c6 {[%clk 0:02:53]} 4. Nc3 {[%clk 0:02:56]}  Nf6 {[%clk 0:02:47]} 5. Bb3 {[%clk 0:02:54]}  Bb4 {[%clk 0:02:44]} 6. e5 {[%clk 0:02:53]}  Qe7 {[%clk 0:02:41]} 7. Qe2 {[%clk 0:02:52]}  Nh5 {[%clk 0:02:34]} 8. Qxh5 {[%clk 0:02:51]}  d6 {[%clk 0:02:05]} 9. Nf3 {[%clk 0:02:43]}  dxe5 {[%clk 0:02:04]} 10. Qxe5 {[%clk 0:02:41]}  O-O {[%clk 0:01:52]} 11. Qxe7 {[%clk 0:02:40]}  Bxe7 {[%clk 0:01:53]} 12. d4 {[%clk 0:02:40]}  Bd6 {[%clk 0:01:53]} 13. O-O {[%clk 0:02:38]}  Bf5 {[%clk 0:01:51]} 14. Ne5 {[%clk 0:02:35]}  g5 {[%clk 0:01:42]} 15. g3 {[%clk 0:02:33]}  Bh3 {[%clk 0:01:39]} 16. Rf2 {[%clk 0:02:33]}  Bxe5 {[%clk 0:01:33]} 17. dxe5 {[%clk 0:02:30]}  fxg3 {[%clk 0:01:30]} 18. hxg3 {[%clk 0:02:29]}  Nd7 {[%clk 0:01:28]} 19. Ne4 {[%clk 0:02:05]}  h6 {[%clk 0:01:22]} 20. Nf6+ {[%clk 0:01:50]}  Nxf6 {[%clk 0:01:21]} 21. Rxf6 {[%clk 0:01:50]}  Kg7 {[%clk 0:01:20]} 22. Bd2 {[%clk 0:01:47]}  Rae8 {[%clk 0:01:15]} 23. Bc3 {[%clk 0:01:47]}  Be6 {[%clk 0:01:15]} 24. Raf1 {[%clk 0:01:45]}  Re7 {[%clk 0:01:08]} 25. Bb4 {[%clk 0:01:38]}  Rfe8 {[%clk 0:01:07]} 26. Bxe7 {[%clk 0:01:38]}  Rxe7 {[%clk 0:01:07]} 27. Bxe6 {[%clk 0:01:37]}  fxe6 {[%clk 0:01:08]} 28. Rf8 {[%clk 0:01:34]}  Kg6 {[%clk 0:01:08]} 29. Rb8 {[%clk 0:01:28]}  a5 {[%clk 0:01:03]} 30. g4 {[%clk 0:01:27]} 1-0


[Site "https://www.chess.com"]

[Event "Titled Tuesday Blitz November 22 Late 2022"]
[White "Rios Escobar, Adan"]
[Black "Storey, Charles H"]
[WhiteFideId "3403645"]
[BlackFideId "406686"]
[WhiteElo "2334"]
[BlackElo "2252"]
[Result "1/2-1/2"]
[Round "11"]
[TimeControl "180+1"]
[Date "2022.11.23"]
[WhiteClock "0:00:24"]
[BlackClock "0:00:43"]

1. d4 {[%clk 0:03:00]}  Nf6 {[%clk 0:02:53]} 2. g3 {[%clk 0:03:01]}  e5 {[%clk 0:02:51]} 3. dxe5 {[%clk 0:03:00]}  Ng4 {[%clk 0:02:50]} 4. e4 {[%clk 0:03:01]}  Nxe5 {[%clk 0:02:49]} 5. f4 {[%clk 0:03:01]}  Ng6 {[%clk 0:02:45]} 6. Nc3 {[%clk 0:02:59]}  Bc5 {[%clk 0:02:40]} 7. Qd3 {[%clk 0:02:56]}  Nc6 {[%clk 0:02:33]} 8. a3 {[%clk 0:02:55]}  O-O {[%clk 0:02:28]} 9. Nge2 {[%clk 0:02:40]}  d6 {[%clk 0:02:14]} 10. Bg2 {[%clk 0:02:30]}  Bg4 {[%clk 0:02:13]} 11. h3 {[%clk 0:02:27]}  Bxe2 {[%clk 0:02:11]} 12. Qxe2 {[%clk 0:02:19]}  Re8 {[%clk 0:02:11]} 13. Bd2 {[%clk 0:02:13]}  Nd4 {[%clk 0:02:07]} 14. Qd3 {[%clk 0:02:13]}  b5 {[%clk 0:01:48]} 15. O-O-O {[%clk 0:02:04]}  Rb8 {[%clk 0:01:38]} 16. h4 {[%clk 0:02:00]}  b4 {[%clk 0:01:29]} 17. axb4 {[%clk 0:02:00]}  Rxb4 {[%clk 0:01:28]} 18. Nd5 {[%clk 0:01:59]}  Ra4 {[%clk 0:01:24]} 19. Bc3 {[%clk 0:01:54]}  c6 {[%clk 0:01:16]} 20. Ne3 {[%clk 0:01:52]}  Qb6 {[%clk 0:01:04]} 21. Kd2 {[%clk 0:01:38]}  Nb5 {[%clk 0:00:52]} 22. Nc4 {[%clk 0:01:33]}  Qa6 {[%clk 0:00:42]} 23. h5 {[%clk 0:01:23]}  Nxc3 {[%clk 0:00:31]} 24. bxc3 {[%clk 0:01:06]}  Qxc4 {[%clk 0:00:25]} 25. Qxc4 {[%clk 0:01:00]}  Rxc4 {[%clk 0:00:24]} 26. hxg6 {[%clk 0:01:00]}  hxg6 {[%clk 0:00:25]} 27. Ra1 {[%clk 0:01:00]}  Bf2 {[%clk 0:00:19]} 28. Rh3 {[%clk 0:00:49]}  d5 {[%clk 0:00:19]} 29. exd5 {[%clk 0:00:42]}  cxd5 {[%clk 0:00:19]} 30. Bxd5 {[%clk 0:00:40]}  Rd8 {[%clk 0:00:19]} 31. Kd3 {[%clk 0:00:41]}  Rc5 {[%clk 0:00:19]} 32. c4 {[%clk 0:00:41]}  Rc7 {[%clk 0:00:17]} 33. Rah1 {[%clk 0:00:39]}  Kf8 {[%clk 0:00:17]} 34. R1h2 {[%clk 0:00:31]}  Bb6 {[%clk 0:00:15]} 35. Re2 {[%clk 0:00:30]}  Kg8 {[%clk 0:00:13]} 36. Reh2 {[%clk 0:00:17]}  Kf8 {[%clk 0:00:13]} 37. Rh7 {[%clk 0:00:18]}  Rd6 {[%clk 0:00:11]} 38. Re2 {[%clk 0:00:16]}  Kg8 {[%clk 0:00:11]} 39. Rh1 {[%clk 0:00:15]}  Rd8 {[%clk 0:00:11]} 40. Reh2 {[%clk 0:00:14]}  Kf8 {[%clk 0:00:11]} 41. Rh8+ {[%clk 0:00:15]}  Ke7 {[%clk 0:00:11]} 42. Rxd8 {[%clk 0:00:15]}  Kxd8 {[%clk 0:00:12]} 43. Rh7 {[%clk 0:00:15]}  f6 {[%clk 0:00:11]} 44. Rh8+ {[%clk 0:00:15]}  Ke7 {[%clk 0:00:11]} 45. Rg8 {[%clk 0:00:15]}  Kd6 {[%clk 0:00:12]} 46. Rd8+ {[%clk 0:00:15]}  Kc5 {[%clk 0:00:12]} 47. Re8 {[%clk 0:00:14]}  a5 {[%clk 0:00:12]} 48. Re6 {[%clk 0:00:14]}  Ba7 {[%clk 0:00:12]} 49. Kc3 {[%clk 0:00:13]}  Bb6 {[%clk 0:00:10]} 50. g4 {[%clk 0:00:12]}  a4 {[%clk 0:00:10]} 51. g5 {[%clk 0:00:12]}  Ba5+ {[%clk 0:00:11]} 52. Kd3 {[%clk 0:00:12]}  a3 {[%clk 0:00:11]} 53. Ra6 {[%clk 0:00:09]}  Kb4 {[%clk 0:00:11]} 54. c5 {[%clk 0:00:09]}  Rxc5 {[%clk 0:00:09]} 55. Bb3 {[%clk 0:00:05]}  fxg5 {[%clk 0:00:10]} 56. fxg5 {[%clk 0:00:05]}  Rxg5 {[%clk 0:00:10]} 57. Ra7 {[%clk 0:00:05]}  Rg3+ {[%clk 0:00:10]} 58. Ke2 {[%clk 0:00:05]}  Bb6 {[%clk 0:00:07]} 59. Ra6 {[%clk 0:00:04]}  Kc5 {[%clk 0:00:07]} 60. Rxa3 {[%clk 0:00:03]}  Rg2+ {[%clk 0:00:07]} 61. Kf3 {[%clk 0:00:03]}  Rg1 {[%clk 0:00:07]} 62. Ra8 {[%clk 0:00:03]}  g5 {[%clk 0:00:07]} 63. Rc8+ {[%clk 0:00:02]}  Kb4 {[%clk 0:00:06]} 64. Rg8 {[%clk 0:00:03]}  g4+ {[%clk 0:00:06]} 65. Ke2 {[%clk 0:00:03]}  Bd4 {[%clk 0:00:06]} 66. Rd8 {[%clk 0:00:02]}  Bf6 {[%clk 0:00:06]} 67. Rb8+ {[%clk 0:00:02]}  Kc3 {[%clk 0:00:06]} 68. Rc8+ {[%clk 0:00:03]}  Kb2 {[%clk 0:00:06]} 69. Rb8 {[%clk 0:00:03]}  Kc1 {[%clk 0:00:07]} 70. Ra8 {[%clk 0:00:02]}  Rg2+ {[%clk 0:00:07]} 71. Kf1 {[%clk 0:00:02]}  Rd2 {[%clk 0:00:06]} 72. Ra4 {[%clk 0:00:02]}  g3 {[%clk 0:00:06]} 73. Rg4 {[%clk 0:00:02]}  Be5 {[%clk 0:00:06]} 74. Rg5 {[%clk 0:00:02]}  Bf4 {[%clk 0:00:05]} 75. Rxg7 {[%clk 0:00:02]}  Rf2+ {[%clk 0:00:05]} 76. Kg1 {[%clk 0:00:02]}  Kd2 {[%clk 0:00:05]} 77. c4 {[%clk 0:00:02]}  Ke2 {[%clk 0:00:04]} 78. c5 {[%clk 0:00:02]}  Be3 {[%clk 0:00:05]} 79. Rxg3 {[%clk 0:00:02]}  Rf1+ {[%clk 0:00:03]} 80. Kg2 {[%clk 0:00:02]}  Rf2+ {[%clk 0:00:02]} 81. Kh3 {[%clk 0:00:02]}  Bf4 {[%clk 0:00:03]} 82. Rg2 {[%clk 0:00:02]}  Rxg2 {[%clk 0:00:02]} 83. Kxg2 {[%clk 0:00:02]}  Bc7 {[%clk 0:00:02]} 84. c6 {[%clk 0:00:02]}  Kd3 {[%clk 0:00:03]} 85. Bd5 {[%clk 0:00:02]}  Kc3 {[%clk 0:00:04]} 86. Bf3 {[%clk 0:00:03]}  Kd4 {[%clk 0:00:05]} 87. Kh3 {[%clk 0:00:04]}  Kc5 {[%clk 0:00:06]} 88. Kg4 {[%clk 0:00:04]}  Kd6 {[%clk 0:00:07]} 89. Kf5 {[%clk 0:00:05]}  Bb6 {[%clk 0:00:08]} 90. Kf6 {[%clk 0:00:05]}  Kc7 {[%clk 0:00:08]} 91. Ke7 {[%clk 0:00:05]}  Bg1 {[%clk 0:00:09]} 92. Ke6 {[%clk 0:00:05]}  Bf2 {[%clk 0:00:10]} 93. Kd5 {[%clk 0:00:05]}  Bg1 {[%clk 0:00:11]} 94. Kc4 {[%clk 0:00:06]}  Bf2 {[%clk 0:00:12]} 95. Kd3 {[%clk 0:00:06]}  Bg1 {[%clk 0:00:13]} 96. Kc4 {[%clk 0:00:06]}  Bh2 {[%clk 0:00:14]} 97. Kb5 {[%clk 0:00:06]}  Bg3 {[%clk 0:00:15]} 98. Be4 {[%clk 0:00:06]}  Bh2 {[%clk 0:00:15]} 99. Bd5 {[%clk 0:00:07]}  Bg1 {[%clk 0:00:16]} 100. Bh1 {[%clk 0:00:07]}  Bh2 {[%clk 0:00:17]} 101. Kc5 {[%clk 0:00:06]}  Bg1+ {[%clk 0:00:18]} 102. Kd5 {[%clk 0:00:07]}  Bh2 {[%clk 0:00:19]} 103. Ke4 {[%clk 0:00:07]}  Bg1 {[%clk 0:00:20]} 104. Kf3 {[%clk 0:00:08]}  Bb6 {[%clk 0:00:20]} 105. Ke2 {[%clk 0:00:08]}  Ba7 {[%clk 0:00:21]} 106. Kf1 {[%clk 0:00:09]}  Bb6 {[%clk 0:00:22]} 107. Kg2 {[%clk 0:00:10]}  Ba7 {[%clk 0:00:23]} 108. Kf3 {[%clk 0:00:11]}  Bb6 {[%clk 0:00:24]} 109. Ke4 {[%clk 0:00:11]}  Ba7 {[%clk 0:00:24]} 110. Kf5 {[%clk 0:00:12]}  Bb6 {[%clk 0:00:25]} 111. Ke6 {[%clk 0:00:13]}  Ba7 {[%clk 0:00:26]} 112. Kd5 {[%clk 0:00:14]}  Bb6 {[%clk 0:00:26]} 113. Kc4 {[%clk 0:00:15]}  Bg1 {[%clk 0:00:27]} 114. Kb5 {[%clk 0:00:16]}  Bh2 {[%clk 0:00:27]} 115. Ka6 {[%clk 0:00:17]}  Bg1 {[%clk 0:00:28]} 116. Bg2 {[%clk 0:00:16]}  Bh2 {[%clk 0:00:29]} 117. Ka7 {[%clk 0:00:16]}  Bg1+ {[%clk 0:00:30]} 118. Ka8 {[%clk 0:00:17]}  Bh2 {[%clk 0:00:30]} 119. Bf3 {[%clk 0:00:18]}  Bg1 {[%clk 0:00:31]} 120. Be4 {[%clk 0:00:18]}  Bh2 {[%clk 0:00:32]} 121. Ka7 {[%clk 0:00:18]}  Bg1+ {[%clk 0:00:33]} 122. Ka6 {[%clk 0:00:18]}  Bh2 {[%clk 0:00:34]} 123. Kb5 {[%clk 0:00:19]}  Bg1 {[%clk 0:00:35]} 124. Kc4 {[%clk 0:00:20]}  Bh2 {[%clk 0:00:36]} 125. Kd3 {[%clk 0:00:21]}  Bg1 {[%clk 0:00:37]} 126. Kd2 {[%clk 0:00:21]}  Bh2 {[%clk 0:00:37]} 127. Ke2 {[%clk 0:00:21]}  Bd6 {[%clk 0:00:38]} 128. Kf3 {[%clk 0:00:22]}  Bc5 {[%clk 0:00:39]} 129. Kf4 {[%clk 0:00:22]}  Bb6 {[%clk 0:00:40]} 130. Ke5 {[%clk 0:00:22]}  Ba7 {[%clk 0:00:41]} 131. Ke6 {[%clk 0:00:23]}  Bb8 {[%clk 0:00:41]} 132. Kd5 {[%clk 0:00:22]}  Ba7 {[%clk 0:00:42]} 133. Kc4 {[%clk 0:00:23]}  Bg1 {[%clk 0:00:43]} 134. Kb5 {[%clk 0:00:24]} 1/2-1/2


[Site "https://www.chess.com"]

[Event "Titled Tuesday Blitz November 22 Late 2022"]
[White "Roman, Rodrigo"]
[Black "Roque Sola, Jose Luis"]
[WhiteFideId "3701220"]
[BlackFideId "5120390"]
[WhiteElo "1995"]
[BlackElo "2117"]
[Result "1-0"]
[Round "11"]
[TimeControl "180+1"]
[Date "2022.11.23"]
[WhiteClock "0:01:17"]
[BlackClock "0:00:11"]

1. c4 {[%clk 0:03:00]}  Nf6 {[%clk 0:02:59]} 2. Nf3 {[%clk 0:03:00]}  g6 {[%clk 0:02:58]} 3. g3 {[%clk 0:02:59]}  Bg7 {[%clk 0:02:58]} 4. Bg2 {[%clk 0:02:59]}  O-O {[%clk 0:02:58]} 5. Nc3 {[%clk 0:02:58]}  d5 {[%clk 0:02:50]} 6. cxd5 {[%clk 0:02:57]}  Nxd5 {[%clk 0:02:50]} 7. h4 {[%clk 0:02:40]}  h5 {[%clk 0:02:43]} 8. Ng5 {[%clk 0:02:27]}  Nxc3 {[%clk 0:02:26]} 9. dxc3 {[%clk 0:02:24]}  Qxd1+ {[%clk 0:02:24]} 10. Kxd1 {[%clk 0:02:25]}  c6 {[%clk 0:02:22]} 11. Kc2 {[%clk 0:02:24]}  Rd8 {[%clk 0:01:51]} 12. e4 {[%clk 0:02:21]}  Na6 {[%clk 0:01:49]} 13. Be3 {[%clk 0:02:20]}  f6 {[%clk 0:01:42]} 14. Nf3 {[%clk 0:02:18]}  Be6 {[%clk 0:01:42]} 15. Nd4 {[%clk 0:02:17]}  Bf7 {[%clk 0:01:42]} 16. Rhd1 {[%clk 0:02:04]}  e5 {[%clk 0:01:39]} 17. Nb3 {[%clk 0:01:59]}  b6 {[%clk 0:01:32]} 18. a4 {[%clk 0:01:57]}  Kf8 {[%clk 0:00:56]} 19. a5 {[%clk 0:01:55]}  Rxd1 {[%clk 0:00:54]} 20. Rxd1 {[%clk 0:01:51]}  Bxb3+ {[%clk 0:00:40]} 21. Kxb3 {[%clk 0:01:52]}  bxa5 {[%clk 0:00:39]} 22. Ra1 {[%clk 0:01:50]}  Rb8+ {[%clk 0:00:25]} 23. Kc2 {[%clk 0:01:49]}  Nc7 {[%clk 0:00:18]} 24. Bxa7 {[%clk 0:01:34]}  Rb7 {[%clk 0:00:17]} 25. Rxa5 {[%clk 0:01:31]}  Ke8 {[%clk 0:00:15]} 26. Bc5 {[%clk 0:01:23]}  Kd7 {[%clk 0:00:16]} 27. Bf1 {[%clk 0:01:22]}  f5 {[%clk 0:00:14]} 28. Bd3 {[%clk 0:01:19]}  Ne6 {[%clk 0:00:11]} 29. exf5 {[%clk 0:01:17]} 1-0


[Site "https://www.chess.com"]

[Event "Titled Tuesday Blitz November 22 Late 2022"]
[White "Romanchuk, Viktor"]
[Black "Musovic, Armin"]
[WhiteFideId "14109271"]
[BlackFideId "939935"]
[WhiteElo "2242"]
[BlackElo "2288"]
[Result "1-0"]
[Round "11"]
[TimeControl "180+1"]
[Date "2022.11.23"]
[WhiteClock "0:00:18"]
[BlackClock "0:00:32"]

1. d4 {[%clk 0:03:00]}  d5 {[%clk 0:02:53]} 2. c4 {[%clk 0:03:00]}  c5 {[%clk 0:02:52]} 3. cxd5 {[%clk 0:02:59]}  e6 {[%clk 0:02:52]} 4. dxe6 {[%clk 0:02:54]}  Bxe6 {[%clk 0:02:53]} 5. Nf3 {[%clk 0:02:54]}  Nc6 {[%clk 0:02:53]} 6. e3 {[%clk 0:02:50]}  a6 {[%clk 0:02:52]} 7. Nc3 {[%clk 0:02:48]}  Nf6 {[%clk 0:02:49]} 8. Be2 {[%clk 0:02:44]}  Be7 {[%clk 0:02:47]} 9. O-O {[%clk 0:02:44]}  O-O {[%clk 0:02:47]} 10. dxc5 {[%clk 0:02:31]}  Qa5 {[%clk 0:02:46]} 11. a3 {[%clk 0:02:27]}  Qxc5 {[%clk 0:02:44]} 12. Bd2 {[%clk 0:02:24]}  Rfd8 {[%clk 0:02:44]} 13. Rc1 {[%clk 0:02:23]}  Qf5 {[%clk 0:02:41]} 14. Qc2 {[%clk 0:02:22]}  Qg4 {[%clk 0:02:32]} 15. Ne5 {[%clk 0:02:12]}  Qh4 {[%clk 0:02:21]} 16. Nxc6 {[%clk 0:02:01]}  bxc6 {[%clk 0:02:22]} 17. Be1 {[%clk 0:01:33]}  Bd6 {[%clk 0:02:13]} 18. f4 {[%clk 0:01:27]}  Qh6 {[%clk 0:02:08]} 19. Ne4 {[%clk 0:01:26]}  Nd5 {[%clk 0:01:57]} 20. Bf2 {[%clk 0:01:18]}  Bf5 {[%clk 0:01:28]} 21. Bf3 {[%clk 0:01:14]}  Rac8 {[%clk 0:01:21]} 22. Qa4 {[%clk 0:01:03]}  Bb8 {[%clk 0:01:17]} 23. Qxa6 {[%clk 0:00:49]}  Re8 {[%clk 0:01:17]} 24. Ng3 {[%clk 0:00:46]}  Be6 {[%clk 0:01:11]} 25. Rxc6 {[%clk 0:00:40]}  Rcd8 {[%clk 0:01:06]} 26. f5 {[%clk 0:00:31]}  Ne7 {[%clk 0:00:46]} 27. fxe6 {[%clk 0:00:24]}  Nxc6 {[%clk 0:00:46]} 28. exf7+ {[%clk 0:00:21]}  Kxf7 {[%clk 0:00:47]} 29. Qxc6 {[%clk 0:00:20]}  Kg8 {[%clk 0:00:47]} 30. Qxh6 {[%clk 0:00:19]}  gxh6 {[%clk 0:00:48]} 31. e4 {[%clk 0:00:18]}  Be5 {[%clk 0:00:48]} 32. b3 {[%clk 0:00:17]}  Rd3 {[%clk 0:00:46]} 33. Be2 {[%clk 0:00:15]}  Rc3 {[%clk 0:00:44]} 34. Bc4+ {[%clk 0:00:15]}  Kh8 {[%clk 0:00:45]} 35. Nf5 {[%clk 0:00:15]}  Bf4 {[%clk 0:00:33]} 36. Bd4+ {[%clk 0:00:15]}  Be5 {[%clk 0:00:34]} 37. Bxc3 {[%clk 0:00:13]}  Bxc3 {[%clk 0:00:35]} 38. g3 {[%clk 0:00:12]}  Rxe4 {[%clk 0:00:34]} 39. Kg2 {[%clk 0:00:13]}  Bd2 {[%clk 0:00:32]} 40. a4 {[%clk 0:00:12]}  h5 {[%clk 0:00:31]} 41. Rd1 {[%clk 0:00:12]}  Ba5 {[%clk 0:00:28]} 42. Rd5 {[%clk 0:00:11]}  Bc7 {[%clk 0:00:29]} 43. Rd7 {[%clk 0:00:11]}  Ba5 {[%clk 0:00:29]} 44. Ra7 {[%clk 0:00:11]}  Bd8 {[%clk 0:00:28]} 45. Ra8 {[%clk 0:00:11]}  Re8 {[%clk 0:00:28]} 46. a5 {[%clk 0:00:10]}  h6 {[%clk 0:00:27]} 47. a6 {[%clk 0:00:10]}  Kh7 {[%clk 0:00:28]} 48. a7 {[%clk 0:00:10]}  h4 {[%clk 0:00:28]} 49. gxh4 {[%clk 0:00:10]}  h5 {[%clk 0:00:27]} 50. Kf3 {[%clk 0:00:10]}  Rf8 {[%clk 0:00:27]} 51. Ke4 {[%clk 0:00:10]}  Kg6 {[%clk 0:00:27]} 52. Nd6 {[%clk 0:00:09]}  Kf6 {[%clk 0:00:24]} 53. Kd5 {[%clk 0:00:10]}  Ke7 {[%clk 0:00:23]} 54. Rb8 {[%clk 0:00:10]}  Rf1 {[%clk 0:00:21]} 55. a8=Q {[%clk 0:00:10]}  Rd1+ {[%clk 0:00:22]} 56. Kc5 {[%clk 0:00:10]}  Rxd6 {[%clk 0:00:19]} 57. Rxd8 {[%clk 0:00:10]}  Rxd8 {[%clk 0:00:19]} 58. Qxd8+ {[%clk 0:00:10]}  Kxd8 {[%clk 0:00:20]} 59. Be2 {[%clk 0:00:10]}  Ke7 {[%clk 0:00:21]} 60. Bxh5 {[%clk 0:00:11]}  Kf6 {[%clk 0:00:22]} 61. Bg4 {[%clk 0:00:11]}  Kg7 {[%clk 0:00:23]} 62. h3 {[%clk 0:00:12]}  Kh6 {[%clk 0:00:24]} 63. b4 {[%clk 0:00:12]}  Kg7 {[%clk 0:00:24]} 64. b5 {[%clk 0:00:13]}  Kf6 {[%clk 0:00:25]} 65. Kc6 {[%clk 0:00:14]}  Ke5 {[%clk 0:00:26]} 66. Kc7 {[%clk 0:00:14]}  Kf4 {[%clk 0:00:27]} 67. b6 {[%clk 0:00:15]}  Kg3 {[%clk 0:00:28]} 68. b7 {[%clk 0:00:15]}  Kxh4 {[%clk 0:00:28]} 69. b8=Q {[%clk 0:00:16]}  Kg3 {[%clk 0:00:29]} 70. Qh8 {[%clk 0:00:16]}  Kf4 {[%clk 0:00:29]} 71. Qh5 {[%clk 0:00:17]}  Kg3 {[%clk 0:00:28]} 72. h4 {[%clk 0:00:18]}  Kf4 {[%clk 0:00:29]} 73. Qg5+ {[%clk 0:00:18]}  Kg3 {[%clk 0:00:29]} 74. h5 {[%clk 0:00:18]}  Kf2 {[%clk 0:00:29]} 75. h6 {[%clk 0:00:18]}  Ke1 {[%clk 0:00:30]} 76. h7 {[%clk 0:00:19]}  Kf2 {[%clk 0:00:31]} 77. h8=Q {[%clk 0:00:19]}  Kg3 {[%clk 0:00:32]} 78. Qh3+ {[%clk 0:00:18]}  Kf2 {[%clk 0:00:32]} 79. Qge3# {[%clk 0:00:18]} 1-0


[Site "https://www.chess.com"]

[Event "Titled Tuesday Blitz November 22 Late 2022"]
[White "Rustemov, Alexander"]
[Black "Golubev, Mikhail"]
[WhiteFideId "4119002"]
[BlackFideId "14100983"]
[WhiteElo "2882"]
[BlackElo "2374"]
[Result "0-1"]
[Round "11"]
[TimeControl "180+1"]
[Date "2022.11.23"]
[WhiteClock "0:00:03"]
[BlackClock "0:00:27"]

1. d4 {[%clk 0:03:00]}  Nf6 {[%clk 0:03:00]} 2. c4 {[%clk 0:03:00]}  g6 {[%clk 0:03:00]} 3. Nf3 {[%clk 0:03:00]}  Bg7 {[%clk 0:03:00]} 4. g3 {[%clk 0:03:00]}  O-O {[%clk 0:03:01]} 5. Bg2 {[%clk 0:03:01]}  d6 {[%clk 0:03:01]} 6. Nc3 {[%clk 0:02:59]}  Nbd7 {[%clk 0:03:02]} 7. d5 {[%clk 0:02:59]}  Nb6 {[%clk 0:02:49]} 8. Qd3 {[%clk 0:02:58]}  e6 {[%clk 0:02:46]} 9. O-O {[%clk 0:02:57]}  Re8 {[%clk 0:02:40]} 10. h3 {[%clk 0:02:51]}  exd5 {[%clk 0:02:38]} 11. cxd5 {[%clk 0:02:50]}  Bf5 {[%clk 0:02:37]} 12. Qd1 {[%clk 0:02:45]}  Ne4 {[%clk 0:02:37]} 13. Nd4 {[%clk 0:02:37]}  Nxc3 {[%clk 0:02:34]} 14. bxc3 {[%clk 0:02:36]}  Be4 {[%clk 0:02:33]} 15. Bxe4 {[%clk 0:02:34]}  Rxe4 {[%clk 0:02:34]} 16. f3 {[%clk 0:02:34]}  Re8 {[%clk 0:02:15]} 17. e4 {[%clk 0:02:34]}  c6 {[%clk 0:02:12]} 18. dxc6 {[%clk 0:02:32]}  bxc6 {[%clk 0:02:13]} 19. Nxc6 {[%clk 0:02:20]}  Qc7 {[%clk 0:02:09]} 20. Nb4 {[%clk 0:02:19]}  Bxc3 {[%clk 0:01:58]} 21. Nc2 {[%clk 0:01:52]}  Bxa1 {[%clk 0:01:58]} 22. Nxa1 {[%clk 0:01:52]}  d5 {[%clk 0:01:58]} 23. Bf4 {[%clk 0:01:35]}  Qc5+ {[%clk 0:01:55]} 24. Kg2 {[%clk 0:01:34]}  dxe4 {[%clk 0:01:54]} 25. fxe4 {[%clk 0:01:31]}  Rxe4 {[%clk 0:01:50]} 26. Qf3 {[%clk 0:01:27]}  Qd5 {[%clk 0:01:41]} 27. Rf2 {[%clk 0:01:23]}  Re6 {[%clk 0:01:34]} 28. Nb3 {[%clk 0:01:21]}  Qxf3+ {[%clk 0:01:33]} 29. Kxf3 {[%clk 0:01:22]}  Nd5 {[%clk 0:01:30]} 30. Nd4 {[%clk 0:01:09]}  Nxf4 {[%clk 0:01:29]} 31. gxf4 {[%clk 0:01:08]}  Rd6 {[%clk 0:01:28]} 32. Nb5 {[%clk 0:01:05]}  Rd3+ {[%clk 0:01:23]} 33. Kg4 {[%clk 0:01:04]}  h5+ {[%clk 0:01:15]} 34. Kh4 {[%clk 0:01:03]}  a5 {[%clk 0:00:58]} 35. a4 {[%clk 0:00:52]}  Re8 {[%clk 0:00:56]} 36. Nc7 {[%clk 0:00:31]}  Ree3 {[%clk 0:00:51]} 37. f5 {[%clk 0:00:23]}  f6 {[%clk 0:00:38]} 38. Rh2 {[%clk 0:00:03]}  Re4# {[%clk 0:00:27]} 0-1


[Site "https://www.chess.com"]

[Event "Titled Tuesday Blitz November 22 Late 2022"]
[White "Sabar, Ethmane Daouda"]
[Black "Gonzalez, Francisco Silva"]
[WhiteFideId "19600097"]
[BlackFideId "1512285"]
[WhiteElo "1950"]
[BlackElo "2159"]
[Result "0-1"]
[Round "11"]
[TimeControl "180+1"]
[Date "2022.11.23"]
[WhiteClock "0:00:41"]
[BlackClock "0:02:05"]

1. d4 {[%clk 0:02:59]}  Nf6 {[%clk 0:02:55]} 2. Nf3 {[%clk 0:02:59]}  d5 {[%clk 0:02:54]} 3. g3 {[%clk 0:03:00]}  c5 {[%clk 0:02:54]} 4. Bg2 {[%clk 0:03:01]}  cxd4 {[%clk 0:02:53]} 5. Nxd4 {[%clk 0:03:01]}  e5 {[%clk 0:02:52]} 6. Nb3 {[%clk 0:02:57]}  h6 {[%clk 0:02:51]} 7. O-O {[%clk 0:02:55]}  Nc6 {[%clk 0:02:52]} 8. c4 {[%clk 0:02:46]}  d4 {[%clk 0:02:44]} 9. e3 {[%clk 0:02:44]}  Bg4 {[%clk 0:02:44]} 10. f3 {[%clk 0:02:40]}  Be6 {[%clk 0:02:42]} 11. exd4 {[%clk 0:02:39]}  exd4 {[%clk 0:02:41]} 12. f4 {[%clk 0:02:23]}  Bxc4 {[%clk 0:02:37]} 13. Re1+ {[%clk 0:02:23]}  Be7 {[%clk 0:02:37]} 14. Bxc6+ {[%clk 0:01:31]}  bxc6 {[%clk 0:02:36]} 15. Qxd4 {[%clk 0:01:17]}  Bd5 {[%clk 0:02:21]} 16. Qc5 {[%clk 0:00:55]}  Kf8 {[%clk 0:02:20]} 17. Qe3 {[%clk 0:00:50]}  Ng4 {[%clk 0:02:17]} 18. Qe2 {[%clk 0:00:47]}  Qb6+ {[%clk 0:02:14]} 19. Be3 {[%clk 0:00:45]}  Nxe3 {[%clk 0:02:10]} 20. Qxe3 {[%clk 0:00:46]}  Bxb3 {[%clk 0:02:06]} 21. axb3 {[%clk 0:00:41]}  Bc5 {[%clk 0:02:05]} 0-1


[Site "https://www.chess.com"]

[Event "Titled Tuesday Blitz November 22 Late 2022"]
[White "Stanisz, Patryk"]
[Black "Marcolino, Daniel Mattos"]
[WhiteFideId "1123106"]
[BlackFideId "2106841"]
[WhiteElo "2069"]
[BlackElo "2119"]
[Result "1-0"]
[Round "11"]
[TimeControl "180+1"]
[Date "2022.11.23"]
[WhiteClock "0:00:08"]
[BlackClock "0:00:19"]

1. d4 {[%clk 0:03:00]}  Nf6 {[%clk 0:02:59]} 2. c4 {[%clk 0:03:00]}  e6 {[%clk 0:02:59]} 3. Nc3 {[%clk 0:03:00]}  Bb4 {[%clk 0:02:59]} 4. e3 {[%clk 0:03:00]}  O-O {[%clk 0:02:58]} 5. Ne2 {[%clk 0:03:00]}  Re8 {[%clk 0:02:57]} 6. a3 {[%clk 0:03:00]}  Bf8 {[%clk 0:02:57]} 7. Ng3 {[%clk 0:02:58]}  d5 {[%clk 0:02:57]} 8. c5 {[%clk 0:02:49]}  b6 {[%clk 0:02:52]} 9. b4 {[%clk 0:02:47]}  a5 {[%clk 0:02:48]} 10. Bb2 {[%clk 0:02:47]}  axb4 {[%clk 0:02:48]} 11. axb4 {[%clk 0:02:47]}  Rxa1 {[%clk 0:02:47]} 12. Qxa1 {[%clk 0:02:42]}  bxc5 {[%clk 0:02:35]} 13. dxc5 {[%clk 0:02:30]}  c6 {[%clk 0:02:35]} 14. Qa8 {[%clk 0:02:14]}  Qc7 {[%clk 0:02:26]} 15. Be2 {[%clk 0:01:45]}  e5 {[%clk 0:02:26]} 16. O-O {[%clk 0:01:42]}  Be6 {[%clk 0:02:26]} 17. Ra1 {[%clk 0:01:28]}  Nbd7 {[%clk 0:02:22]} 18. Qa7 {[%clk 0:01:18]}  Qxa7 {[%clk 0:02:20]} 19. Rxa7 {[%clk 0:01:19]}  Rb8 {[%clk 0:02:20]} 20. Ba3 {[%clk 0:01:18]}  g6 {[%clk 0:02:20]} 21. h4 {[%clk 0:01:17]}  e4 {[%clk 0:02:16]} 22. Ba6 {[%clk 0:01:06]}  Ne5 {[%clk 0:02:03]} 23. Nge2 {[%clk 0:01:03]}  Nd3 {[%clk 0:01:47]} 24. Bxd3 {[%clk 0:00:40]}  exd3 {[%clk 0:01:48]} 25. Nd4 {[%clk 0:00:41]}  Bd7 {[%clk 0:01:17]} 26. f3 {[%clk 0:00:38]}  Be8 {[%clk 0:01:15]} 27. Kf2 {[%clk 0:00:33]}  Bg7 {[%clk 0:01:15]} 28. Ra6 {[%clk 0:00:29]}  Nh5 {[%clk 0:00:42]} 29. Rb6 {[%clk 0:00:25]}  Ra8 {[%clk 0:00:38]} 30. Bb2 {[%clk 0:00:24]}  Bxd4 {[%clk 0:00:28]} 31. exd4 {[%clk 0:00:24]}  Ng7 {[%clk 0:00:26]} 32. b5 {[%clk 0:00:24]}  cxb5 {[%clk 0:00:26]} 33. Nxd5 {[%clk 0:00:24]}  Nf5 {[%clk 0:00:22]} 34. Nf6+ {[%clk 0:00:14]}  Kg7 {[%clk 0:00:21]} 35. Nxe8+ {[%clk 0:00:15]}  Rxe8 {[%clk 0:00:21]} 36. d5+ {[%clk 0:00:14]}  f6 {[%clk 0:00:20]} 37. Bxf6+ {[%clk 0:00:11]}  Kh6 {[%clk 0:00:19]} 38. Bg5+ {[%clk 0:00:08]}  Kh5 {[%clk 0:00:19]} 39. g4# {[%clk 0:00:08]} 1-0


[Site "https://www.chess.com"]